[Event "Titled Tuesday Blitz November 29 Early 2022"]
[White "Sadubayev, Airat"]
[Black "Gorodetzky, David"]
[WhiteFideId "13713264"]
[BlackFideId "2813416"]
[WhiteElo "2160"]
[BlackElo "2497"]
[Result "1-0"]
[Round "09"]
[TimeControl "180+1"]
[Date "2022.11.29"]
[WhiteClock "0:00:05"]
[BlackClock "0:00:02"]

1. d4 {[%clk 0:02:59]}  Nf6 {[%clk 0:02:57]} 2. c4 {[%clk 0:02:58]}  e6 {[%clk 0:02:57]} 3. Nf3 {[%clk 0:02:57]}  d5 {[%clk 0:02:57]} 4. g3 {[%clk 0:02:57]}  dxc4 {[%clk 0:02:54]} 5. Bg2 {[%clk 0:02:56]}  a6 {[%clk 0:02:54]} 6. Ne5 {[%clk 0:02:49]}  c5 {[%clk 0:02:53]} 7. O-O {[%clk 0:02:43]}  cxd4 {[%clk 0:02:51]} 8. Nd2 {[%clk 0:02:37]}  Bc5 {[%clk 0:02:47]} 9. Ndxc4 {[%clk 0:02:31]}  O-O {[%clk 0:02:45]} 10. a3 {[%clk 0:02:19]}  Nbd7 {[%clk 0:02:45]} 11. b4 {[%clk 0:02:17]}  Be7 {[%clk 0:02:44]} 12. Bb2 {[%clk 0:02:13]}  Nxe5 {[%clk 0:02:32]} 13. Nxe5 {[%clk 0:02:12]}  a5 {[%clk 0:02:32]} 14. b5 {[%clk 0:02:05]}  Bc5 {[%clk 0:02:08]} 15. Rc1 {[%clk 0:01:59]}  Qe7 {[%clk 0:02:07]} 16. a4 {[%clk 0:01:49]}  Rd8 {[%clk 0:02:01]} 17. Qc2 {[%clk 0:01:43]}  Bb6 {[%clk 0:01:28]} 18. Rfd1 {[%clk 0:01:35]}  Bd7 {[%clk 0:01:08]} 19. Bxb7 {[%clk 0:01:30]}  Rab8 {[%clk 0:01:01]} 20. Bg2 {[%clk 0:01:23]}  Be8 {[%clk 0:00:56]} 21. Qb3 {[%clk 0:01:16]}  h6 {[%clk 0:00:40]} 22. Ba3 {[%clk 0:01:09]}  Qa7 {[%clk 0:00:41]} 23. Nc4 {[%clk 0:01:03]}  Bc5 {[%clk 0:00:22]} 24. Bxc5 {[%clk 0:01:00]}  Qxc5 {[%clk 0:00:23]} 25. Nxa5 {[%clk 0:01:00]}  Qh5 {[%clk 0:00:23]} 26. Qf3 {[%clk 0:00:52]}  Qg5 {[%clk 0:00:18]} 27. Nb7 {[%clk 0:00:38]}  Rd5 {[%clk 0:00:14]} 28. h4 {[%clk 0:00:36]}  Qe5 {[%clk 0:00:13]} 29. Qf4 {[%clk 0:00:33]}  Qxf4 {[%clk 0:00:10]} 30. gxf4 {[%clk 0:00:34]}  Rxb7 {[%clk 0:00:10]} 31. Bxd5 {[%clk 0:00:32]}  Nxd5 {[%clk 0:00:10]} 32. Rxd4 {[%clk 0:00:32]}  Kf8 {[%clk 0:00:08]} 33. Rc8 {[%clk 0:00:27]}  Ke7 {[%clk 0:00:08]} 34. e3 {[%clk 0:00:25]}  Bd7 {[%clk 0:00:08]} 35. Rc1 {[%clk 0:00:23]}  f5 {[%clk 0:00:07]} 36. Kf1 {[%clk 0:00:22]}  Kd6 {[%clk 0:00:07]} 37. Ke1 {[%clk 0:00:21]}  Rb8 {[%clk 0:00:06]} 38. f3 {[%clk 0:00:19]}  Ke7 {[%clk 0:00:04]} 39. Kd2 {[%clk 0:00:19]}  Ra8 {[%clk 0:00:04]} 40. Rg1 {[%clk 0:00:15]}  Kf6 {[%clk 0:00:03]} 41. Rc1 {[%clk 0:00:14]}  Ke7 {[%clk 0:00:03]} 42. Rc5 {[%clk 0:00:14]}  Nb6 {[%clk 0:00:03]} 43. Rc7 {[%clk 0:00:14]}  Kd8 {[%clk 0:00:03]} 44. Rb7 {[%clk 0:00:14]}  Nd5 {[%clk 0:00:03]} 45. e4 {[%clk 0:00:13]}  fxe4 {[%clk 0:00:04]} 46. fxe4 {[%clk 0:00:14]}  Nf6 {[%clk 0:00:05]} 47. Ke3 {[%clk 0:00:11]}  Kc8 {[%clk 0:00:05]} 48. Rb6 {[%clk 0:00:11]}  Kc7 {[%clk 0:00:06]} 49. Rbd6 {[%clk 0:00:10]}  Bc8 {[%clk 0:00:06]} 50. Rc6+ {[%clk 0:00:10]}  Kb7 {[%clk 0:00:06]} 51. Rdc4 {[%clk 0:00:07]}  e5 {[%clk 0:00:04]} 52. Rc7+ {[%clk 0:00:07]}  Kb6 {[%clk 0:00:03]} 53. fxe5 {[%clk 0:00:08]}  Ng4+ {[%clk 0:00:03]} 54. Kf4 {[%clk 0:00:08]}  g5+ {[%clk 0:00:01]} 55. hxg5 {[%clk 0:00:08]}  hxg5+ {[%clk 0:00:02]} 56. Kxg5 {[%clk 0:00:05]}  Be6 {[%clk 0:00:02]} 57. R4c6+ {[%clk 0:00:05]}  Ka5 {[%clk 0:00:03]} 58. Rxe6 {[%clk 0:00:06]}  Ne3 {[%clk 0:00:02]} 59. Ra6+ {[%clk 0:00:05]} 1-0


[Site "https://www.chess.com"]

[Event "Titled Tuesday Blitz November 29 Early 2022"]
[White "Sadykov, Ramil"]
[Black "Osinovsky, Stepan"]
[WhiteFideId "24113590"]
[BlackFideId "4157354"]
[WhiteElo "2245"]
[BlackElo "2222"]
[Result "1-0"]
[Round "09"]
[TimeControl "180+1"]
[Date "2022.11.30"]
[WhiteClock "0:01:51"]
[BlackClock "0:00:01"]

1. e4 {[%clk 0:02:53]}  e6 {[%clk 0:00:30]} 2. d3 {[%clk 0:02:52]}  d5 {[%clk 0:00:31]} 3. Nd2 {[%clk 0:02:52]}  Ne7 {[%clk 0:00:31]} 4. g3 {[%clk 0:02:51]}  b6 {[%clk 0:00:32]} 5. Bg2 {[%clk 0:02:52]}  Bb7 {[%clk 0:00:33]} 6. Ngf3 {[%clk 0:02:53]}  Nbc6 {[%clk 0:00:34]} 7. O-O {[%clk 0:02:53]}  Qd7 {[%clk 0:00:34]} 8. Re1 {[%clk 0:02:46]}  O-O-O {[%clk 0:00:34]} 9. e5 {[%clk 0:02:44]}  h5 {[%clk 0:00:33]} 10. h4 {[%clk 0:02:42]}  Nf5 {[%clk 0:00:33]} 11. c3 {[%clk 0:02:42]}  Kb8 {[%clk 0:00:31]} 12. d4 {[%clk 0:02:41]}  f6 {[%clk 0:00:31]} 13. Qe2 {[%clk 0:02:37]}  fxe5 {[%clk 0:00:20]} 14. Nxe5 {[%clk 0:02:38]}  Nxe5 {[%clk 0:00:19]} 15. Qxe5 {[%clk 0:02:38]}  Bd6 {[%clk 0:00:19]} 16. Qe2 {[%clk 0:02:27]}  g5 {[%clk 0:00:19]} 17. Nf3 {[%clk 0:02:05]}  gxh4 {[%clk 0:00:17]} 18. gxh4 {[%clk 0:02:06]}  Rhg8 {[%clk 0:00:13]} 19. Qxe6 {[%clk 0:01:59]}  Qg7 {[%clk 0:00:02]} 20. Bg5 {[%clk 0:01:58]}  Bc8 {[%clk 0:00:01]} 21. Qf6 {[%clk 0:01:51]} 1-0


[Site "https://www.chess.com"]

[Event "Titled Tuesday Blitz November 29 Early 2022"]
[White "Salinas Herrera, Pablo"]
[Black "Rangel, Daniel"]
[WhiteFideId "3407128"]
[BlackFideId "2124475"]
[WhiteElo "2557"]
[BlackElo "2225"]
[Result "1-0"]
[Round "09"]
[TimeControl "180+1"]
[Date "2022.11.30"]
[WhiteClock "0:01:11"]
[BlackClock "0:00:10"]

1. d4 {[%clk 0:03:00]}  d5 {[%clk 0:02:55]} 2. c4 {[%clk 0:02:53]}  c6 {[%clk 0:02:54]} 3. Nf3 {[%clk 0:02:51]}  Nf6 {[%clk 0:02:54]} 4. Nbd2 {[%clk 0:02:48]}  e6 {[%clk 0:02:51]} 5. Qc2 {[%clk 0:02:48]}  Nbd7 {[%clk 0:02:45]} 6. g3 {[%clk 0:02:47]}  Be7 {[%clk 0:02:35]} 7. Bg2 {[%clk 0:02:47]}  O-O {[%clk 0:02:35]} 8. O-O {[%clk 0:02:46]}  b5 {[%clk 0:02:34]} 9. b3 {[%clk 0:02:17]}  Bb7 {[%clk 0:02:22]} 10. e4 {[%clk 0:02:13]}  bxc4 {[%clk 0:02:10]} 11. bxc4 {[%clk 0:02:10]}  dxe4 {[%clk 0:01:50]} 12. Nxe4 {[%clk 0:02:10]}  Nxe4 {[%clk 0:01:48]} 13. Qxe4 {[%clk 0:02:10]}  Nf6 {[%clk 0:01:49]} 14. Qe2 {[%clk 0:02:10]}  c5 {[%clk 0:01:48]} 15. Rb1 {[%clk 0:02:10]}  Be4 {[%clk 0:01:45]} 16. Rb3 {[%clk 0:01:56]}  cxd4 {[%clk 0:01:39]} 17. Rd1 {[%clk 0:01:56]}  Rb8 {[%clk 0:01:18]} 18. Rxd4 {[%clk 0:01:39]}  Bxf3 {[%clk 0:01:14]} 19. Rxd8 {[%clk 0:01:39]}  Bxe2 {[%clk 0:01:05]} 20. Rdxb8 {[%clk 0:01:38]}  Bxc4 {[%clk 0:01:01]} 21. Rxf8+ {[%clk 0:01:38]}  Bxf8 {[%clk 0:00:49]} 22. Rb8 {[%clk 0:01:38]}  Nd7 {[%clk 0:00:47]} 23. Rd8 {[%clk 0:01:37]}  Bb5 {[%clk 0:00:43]} 24. Bf1 {[%clk 0:01:35]}  Ba4 {[%clk 0:00:36]} 25. Ba3 {[%clk 0:01:33]}  f6 {[%clk 0:00:30]} 26. Ra8 {[%clk 0:01:28]}  Bc6 {[%clk 0:00:24]} 27. Rxa7 {[%clk 0:01:24]}  Kf7 {[%clk 0:00:12]} 28. Bxf8 {[%clk 0:01:22]}  Kxf8 {[%clk 0:00:13]} 29. a4 {[%clk 0:01:18]}  Ke7 {[%clk 0:00:13]} 30. a5 {[%clk 0:01:18]}  Kd6 {[%clk 0:00:13]} 31. a6 {[%clk 0:01:19]}  Nc5 {[%clk 0:00:13]} 32. Rxg7 {[%clk 0:01:18]}  h5 {[%clk 0:00:13]} 33. a7 {[%clk 0:01:18]}  Ne4 {[%clk 0:00:11]} 34. Bg2 {[%clk 0:01:14]}  f5 {[%clk 0:00:10]} 35. Bxe4 {[%clk 0:01:12]}  fxe4 {[%clk 0:00:10]} 36. Rg8 {[%clk 0:01:11]}  e3 {[%clk 0:00:10]} 37. fxe3 {[%clk 0:01:11]} 1-0


[Site "https://www.chess.com"]

[Event "Titled Tuesday Blitz November 29 Early 2022"]
[White "Sanchez, Robert"]
[Black "Amin-Erdene, Bayanmunkh"]
[WhiteFideId "2034360"]
[BlackFideId "4903161"]
[WhiteElo "2328"]
[BlackElo "1447"]
[Result "1-0"]
[Round "09"]
[TimeControl "180+1"]
[Date "2022.11.30"]
[WhiteClock "0:00:51"]
[BlackClock "0:00:04"]

1. e4 {[%clk 0:02:57]}  d6 {[%clk 0:02:59]} 2. d4 {[%clk 0:02:57]}  Nf6 {[%clk 0:02:58]} 3. Nc3 {[%clk 0:02:57]}  g6 {[%clk 0:02:58]} 4. Be3 {[%clk 0:02:57]}  Bg7 {[%clk 0:02:58]} 5. f3 {[%clk 0:02:57]}  c6 {[%clk 0:02:55]} 6. Qd2 {[%clk 0:02:58]}  h5 {[%clk 0:02:54]} 7. O-O-O {[%clk 0:02:58]}  b5 {[%clk 0:02:53]} 8. Kb1 {[%clk 0:02:57]}  Nbd7 {[%clk 0:02:53]} 9. e5 {[%clk 0:02:45]}  Ng8 {[%clk 0:01:57]} 10. e6 {[%clk 0:02:30]}  fxe6 {[%clk 0:01:54]} 11. Bd3 {[%clk 0:02:31]}  Nf8 {[%clk 0:01:48]} 12. Nh3 {[%clk 0:02:25]}  Nf6 {[%clk 0:01:32]} 13. Ne4 {[%clk 0:02:21]}  Nd5 {[%clk 0:01:22]} 14. Neg5 {[%clk 0:02:13]}  Nxe3 {[%clk 0:01:00]} 15. Qxe3 {[%clk 0:02:13]}  Bf6 {[%clk 0:01:00]} 16. f4 {[%clk 0:02:02]}  Qb6 {[%clk 0:00:52]} 17. Be2 {[%clk 0:01:56]}  Bd7 {[%clk 0:00:48]} 18. Ne4 {[%clk 0:01:50]}  O-O-O {[%clk 0:00:46]} 19. Nhg5 {[%clk 0:01:49]}  Rg8 {[%clk 0:00:31]} 20. Nxf6 {[%clk 0:01:48]}  exf6 {[%clk 0:00:30]} 21. Ne4 {[%clk 0:01:49]}  Kc7 {[%clk 0:00:16]} 22. Nxf6 {[%clk 0:01:44]}  Rg7 {[%clk 0:00:17]} 23. Ne4 {[%clk 0:01:44]}  Rf7 {[%clk 0:00:16]} 24. g3 {[%clk 0:01:43]}  Bc8 {[%clk 0:00:16]} 25. Rhe1 {[%clk 0:01:39]}  Kb8 {[%clk 0:00:17]} 26. Bf3 {[%clk 0:01:33]}  a5 {[%clk 0:00:17]} 27. Rc1 {[%clk 0:01:27]}  Ra7 {[%clk 0:00:17]} 28. c4 {[%clk 0:01:26]}  b4 {[%clk 0:00:16]} 29. c5 {[%clk 0:01:23]}  dxc5 {[%clk 0:00:16]} 30. Nxc5 {[%clk 0:01:22]}  a4 {[%clk 0:00:17]} 31. Rc4 {[%clk 0:01:18]}  a3 {[%clk 0:00:14]} 32. Qb3 {[%clk 0:01:05]}  Ka8 {[%clk 0:00:13]} 33. Rxb4 {[%clk 0:01:04]}  Qc7 {[%clk 0:00:14]} 34. Bxc6+ {[%clk 0:00:59]}  Bb7 {[%clk 0:00:11]} 35. Bxb7+ {[%clk 0:00:55]}  Rxb7 {[%clk 0:00:11]} 36. Rxb7 {[%clk 0:00:55]}  Qa5 {[%clk 0:00:08]} 37. Rb4 {[%clk 0:00:51]}  Nd7 {[%clk 0:00:06]} 38. Ra4 {[%clk 0:00:51]}  Nxc5 {[%clk 0:00:04]} 39. Rxa5+ {[%clk 0:00:51]} 1-0


[Site "https://www.chess.com"]

[Event "Titled Tuesday Blitz November 29 Early 2022"]
[White "Santos Ruiz, Miguel"]
[Black "Radjabov, Teimour"]
[WhiteFideId "22291482"]
[BlackFideId "13400924"]
[WhiteElo "2866"]
[BlackElo "3089"]
[Result "1-0"]
[Round "09"]
[TimeControl "180+1"]
[Date "2022.11.29"]
[WhiteClock "0:00:03"]
[BlackClock "0:00:02"]

1. e4 {[%clk 0:03:00]}  c5 {[%clk 0:02:58]} 2. Nf3 {[%clk 0:03:00]}  Nc6 {[%clk 0:02:57]} 3. Bb5 {[%clk 0:02:59]}  g6 {[%clk 0:02:57]} 4. Bxc6 {[%clk 0:02:59]}  dxc6 {[%clk 0:02:56]} 5. d3 {[%clk 0:02:59]}  Bg7 {[%clk 0:02:56]} 6. O-O {[%clk 0:02:59]}  Nf6 {[%clk 0:02:56]} 7. Re1 {[%clk 0:02:55]}  O-O {[%clk 0:02:51]} 8. h3 {[%clk 0:02:45]}  Re8 {[%clk 0:02:44]} 9. e5 {[%clk 0:02:44]}  Nd5 {[%clk 0:02:43]} 10. b3 {[%clk 0:02:32]}  h6 {[%clk 0:02:42]} 11. Bb2 {[%clk 0:02:28]}  Bf5 {[%clk 0:02:37]} 12. Nbd2 {[%clk 0:02:27]}  b6 {[%clk 0:02:34]} 13. Ne4 {[%clk 0:02:13]}  Qc7 {[%clk 0:02:34]} 14. Ng3 {[%clk 0:02:11]}  Be6 {[%clk 0:02:33]} 15. Qd2 {[%clk 0:02:03]}  Rad8 {[%clk 0:02:33]} 16. Re4 {[%clk 0:02:01]}  f5 {[%clk 0:02:16]} 17. exf6 {[%clk 0:01:50]}  exf6 {[%clk 0:02:16]} 18. Rae1 {[%clk 0:01:47]}  Qf7 {[%clk 0:02:13]} 19. R4e2 {[%clk 0:01:28]}  g5 {[%clk 0:02:09]} 20. Nh5 {[%clk 0:01:07]}  Bh8 {[%clk 0:01:32]} 21. Nh2 {[%clk 0:00:51]}  Bd7 {[%clk 0:01:22]} 22. Rxe8+ {[%clk 0:00:35]}  Rxe8 {[%clk 0:01:18]} 23. Ng3 {[%clk 0:00:32]}  Rxe1+ {[%clk 0:01:04]} 24. Qxe1 {[%clk 0:00:32]}  h5 {[%clk 0:01:05]} 25. Ne4 {[%clk 0:00:29]}  Nf4 {[%clk 0:00:52]} 26. Nf3 {[%clk 0:00:22]}  Bg7 {[%clk 0:00:47]} 27. Kf1 {[%clk 0:00:18]}  Be6 {[%clk 0:00:34]} 28. Qe3 {[%clk 0:00:13]}  Nd5 {[%clk 0:00:32]} 29. Qe1 {[%clk 0:00:13]}  Nf4 {[%clk 0:00:26]} 30. Qe3 {[%clk 0:00:12]}  h4 {[%clk 0:00:19]} 31. c4 {[%clk 0:00:09]}  Bd7 {[%clk 0:00:15]} 32. d4 {[%clk 0:00:09]}  cxd4 {[%clk 0:00:12]} 33. Qxd4 {[%clk 0:00:09]}  Nh5 {[%clk 0:00:12]} 34. Nd6 {[%clk 0:00:07]}  Qe7 {[%clk 0:00:10]} 35. Ne4 {[%clk 0:00:07]}  Qf7 {[%clk 0:00:07]} 36. Qd6 {[%clk 0:00:05]}  Qe6 {[%clk 0:00:04]} 37. Qb8+ {[%clk 0:00:04]}  Qe8 {[%clk 0:00:04]} 38. Qxe8+ {[%clk 0:00:03]}  Bxe8 {[%clk 0:00:04]} 39. Nd6 {[%clk 0:00:04]}  Bg6 {[%clk 0:00:03]} 40. c5 {[%clk 0:00:03]}  b5 {[%clk 0:00:02]} 41. Nc8 {[%clk 0:00:03]} 1-0


[Site "https://www.chess.com"]

[Event "Titled Tuesday Blitz November 29 Early 2022"]
[White "Sellitti, Federico"]
[Black "Urazayev, Arystanbek"]
[WhiteFideId "821829"]
[BlackFideId "13709810"]
[WhiteElo "2616"]
[BlackElo "2441"]
[Result "0-1"]
[Round "09"]
[TimeControl "180+1"]
[Date "2022.11.30"]
[WhiteClock "0:00:01"]
[BlackClock "0:00:06"]

1. e4 {[%clk 0:02:56]}  e5 {[%clk 0:02:58]} 2. Nc3 {[%clk 0:02:57]}  Nf6 {[%clk 0:02:58]} 3. f4 {[%clk 0:02:57]}  d5 {[%clk 0:02:57]} 4. fxe5 {[%clk 0:02:58]}  Nxe4 {[%clk 0:02:58]} 5. Qf3 {[%clk 0:02:58]}  Nxc3 {[%clk 0:02:53]} 6. dxc3 {[%clk 0:02:59]}  Qh4+ {[%clk 0:02:54]} 7. g3 {[%clk 0:02:59]}  Qe4+ {[%clk 0:02:54]} 8. Qxe4 {[%clk 0:02:58]}  dxe4 {[%clk 0:02:55]} 9. Bg2 {[%clk 0:02:44]}  Bf5 {[%clk 0:02:51]} 10. Ne2 {[%clk 0:02:44]}  Nd7 {[%clk 0:02:51]} 11. Nd4 {[%clk 0:02:43]}  Bg6 {[%clk 0:02:50]} 12. Bf4 {[%clk 0:02:41]}  O-O-O {[%clk 0:02:47]} 13. O-O-O {[%clk 0:02:22]}  Be7 {[%clk 0:02:32]} 14. Bh3 {[%clk 0:01:56]}  Bh5 {[%clk 0:02:03]} 15. e6 {[%clk 0:01:34]}  Nc5 {[%clk 0:01:38]} 16. exf7+ {[%clk 0:01:33]}  Kb8 {[%clk 0:01:38]} 17. Rde1 {[%clk 0:01:21]}  Bxf7 {[%clk 0:01:34]} 18. Nb5 {[%clk 0:01:21]}  Bd6 {[%clk 0:01:22]} 19. Nxd6 {[%clk 0:01:18]}  cxd6 {[%clk 0:01:23]} 20. Bf5 {[%clk 0:00:44]}  g6 {[%clk 0:01:21]} 21. Bh3 {[%clk 0:00:41]}  Rhe8 {[%clk 0:01:16]} 22. Bg5 {[%clk 0:00:31]}  Rc8 {[%clk 0:01:12]} 23. Bxc8 {[%clk 0:00:30]}  Kxc8 {[%clk 0:01:13]} 24. Rhf1 {[%clk 0:00:30]}  Bc4 {[%clk 0:01:13]} 25. Rf6 {[%clk 0:00:21]}  Kd7 {[%clk 0:01:12]} 26. b3 {[%clk 0:00:21]}  Be6 {[%clk 0:01:09]} 27. Be3 {[%clk 0:00:21]}  Ke7 {[%clk 0:00:58]} 28. Rf2 {[%clk 0:00:17]}  Nd7 {[%clk 0:00:48]} 29. Rf4 {[%clk 0:00:16]}  d5 {[%clk 0:00:48]} 30. c4 {[%clk 0:00:15]}  g5 {[%clk 0:00:43]} 31. Rf2 {[%clk 0:00:13]}  h6 {[%clk 0:00:40]} 32. cxd5 {[%clk 0:00:13]}  Bxd5 {[%clk 0:00:41]} 33. c4 {[%clk 0:00:12]}  Bc6 {[%clk 0:00:41]} 34. Rd1 {[%clk 0:00:10]}  b6 {[%clk 0:00:37]} 35. Rf5 {[%clk 0:00:05]}  Ke6 {[%clk 0:00:35]} 36. g4 {[%clk 0:00:05]}  Ne5 {[%clk 0:00:34]} 37. h3 {[%clk 0:00:02]}  Nd3+ {[%clk 0:00:23]} 38. Kc2 {[%clk 0:00:03]}  Bd7 {[%clk 0:00:21]} 39. Rdf1 {[%clk 0:00:03]}  Kd6 {[%clk 0:00:20]} 40. Rf6+ {[%clk 0:00:03]}  Kc7 {[%clk 0:00:15]} 41. Rxh6 {[%clk 0:00:03]}  Ne5 {[%clk 0:00:14]} 42. Bxg5 {[%clk 0:00:02]}  Nf3 {[%clk 0:00:12]} 43. Bf4+ {[%clk 0:00:02]}  Kb7 {[%clk 0:00:12]} 44. Rd6 {[%clk 0:00:03]}  Bc6 {[%clk 0:00:12]} 45. Rfd1 {[%clk 0:00:02]}  e3 {[%clk 0:00:12]} 46. Bxe3 {[%clk 0:00:01]}  Rxe3 {[%clk 0:00:13]} 47. R6d3 {[%clk 0:00:01]}  Be4 {[%clk 0:00:13]} 48. Kc3 {[%clk 0:00:01]}  Re2 {[%clk 0:00:10]} 49. Rd4 {[%clk 0:00:01]}  a5 {[%clk 0:00:06]} 0-1


[Site "https://www.chess.com"]

[Event "Titled Tuesday Blitz November 29 Early 2022"]
[White "Sharifov, Mekhriddin"]
[Black "Kosakowski, Jakub"]
[WhiteFideId "14701545"]
[BlackFideId "1185080"]
[WhiteElo "2109"]
[BlackElo "2463"]
[Result "0-1"]
[Round "09"]
[TimeControl "180+1"]
[Date "2022.11.30"]
[WhiteClock "0:00:03"]
[BlackClock "0:00:05"]

1. e4 {[%clk 0:03:00]}  c5 {[%clk 0:02:56]} 2. Nf3 {[%clk 0:03:01]}  d6 {[%clk 0:02:56]} 3. d4 {[%clk 0:03:01]}  cxd4 {[%clk 0:02:57]} 4. Nxd4 {[%clk 0:03:02]}  Nf6 {[%clk 0:02:57]} 5. Nc3 {[%clk 0:03:03]}  a6 {[%clk 0:02:58]} 6. Bg5 {[%clk 0:03:03]}  e6 {[%clk 0:02:58]} 7. f4 {[%clk 0:03:04]}  h6 {[%clk 0:02:59]} 8. Bh4 {[%clk 0:03:04]}  Qb6 {[%clk 0:02:59]} 9. a3 {[%clk 0:03:04]}  Nbd7 {[%clk 0:02:59]} 10. Bf2 {[%clk 0:03:04]}  Qc7 {[%clk 0:03:00]} 11. Qf3 {[%clk 0:03:00]}  b5 {[%clk 0:03:00]} 12. O-O-O {[%clk 0:02:45]}  Bb7 {[%clk 0:02:59]} 13. Bd3 {[%clk 0:02:42]}  Be7 {[%clk 0:02:58]} 14. Rhe1 {[%clk 0:02:38]}  Nc5 {[%clk 0:02:52]} 15. Kb1 {[%clk 0:02:34]}  Rc8 {[%clk 0:02:48]} 16. Qg3 {[%clk 0:02:33]}  g5 {[%clk 0:02:25]} 17. fxg5 {[%clk 0:02:18]}  hxg5 {[%clk 0:02:23]} 18. h3 {[%clk 0:02:06]}  Nh5 {[%clk 0:02:19]} 19. Qg4 {[%clk 0:02:00]}  Nf4 {[%clk 0:02:06]} 20. g3 {[%clk 0:01:48]}  Ng6 {[%clk 0:02:03]} 21. h4 {[%clk 0:01:20]}  Ne5 {[%clk 0:02:01]} 22. Qe2 {[%clk 0:01:20]}  gxh4 {[%clk 0:01:59]} 23. gxh4 {[%clk 0:01:20]}  Bxh4 {[%clk 0:01:51]} 24. Bxh4 {[%clk 0:01:01]}  Rxh4 {[%clk 0:01:50]} 25. Qg2 {[%clk 0:01:01]}  Rg4 {[%clk 0:01:40]} 26. Qh3 {[%clk 0:00:57]}  Ke7 {[%clk 0:01:37]} 27. Rf1 {[%clk 0:00:37]}  Rcg8 {[%clk 0:01:35]} 28. Qh5 {[%clk 0:00:27]}  Ncxd3 {[%clk 0:01:24]} 29. cxd3 {[%clk 0:00:27]}  Qb6 {[%clk 0:01:16]} 30. Nf3 {[%clk 0:00:25]}  Nxf3 {[%clk 0:01:00]} 31. Rxf3 {[%clk 0:00:26]}  f5 {[%clk 0:01:00]} 32. Rff1 {[%clk 0:00:18]}  f4 {[%clk 0:00:52]} 33. e5 {[%clk 0:00:18]}  R4g5 {[%clk 0:00:47]} 34. Qh4 {[%clk 0:00:17]}  b4 {[%clk 0:00:27]} 35. axb4 {[%clk 0:00:16]}  Qxb4 {[%clk 0:00:27]} 36. Rxf4 {[%clk 0:00:15]}  Qc5 {[%clk 0:00:21]} 37. exd6+ {[%clk 0:00:15]}  Kxd6 {[%clk 0:00:19]} 38. Rc4 {[%clk 0:00:13]}  Qe5 {[%clk 0:00:16]} 39. Ne4+ {[%clk 0:00:10]}  Bxe4 {[%clk 0:00:16]} 40. dxe4+ {[%clk 0:00:11]}  Ke7 {[%clk 0:00:16]} 41. Rdc1 {[%clk 0:00:09]}  Kf6 {[%clk 0:00:09]} 42. Rc5 {[%clk 0:00:09]}  Qg3 {[%clk 0:00:08]} 43. Qh6+ {[%clk 0:00:05]}  R5g6 {[%clk 0:00:06]} 44. Rf1+ {[%clk 0:00:05]}  Ke7 {[%clk 0:00:07]} 45. Qh7+ {[%clk 0:00:04]}  R8g7 {[%clk 0:00:07]} 46. Qh8 {[%clk 0:00:05]}  Qd3+ {[%clk 0:00:07]} 47. Ka2 {[%clk 0:00:04]}  Qxf1 {[%clk 0:00:05]} 48. Rc7+ {[%clk 0:00:05]}  Kd6 {[%clk 0:00:05]} 49. Qd8+ {[%clk 0:00:05]}  Ke5 {[%clk 0:00:05]} 50. Rc5+ {[%clk 0:00:06]}  Kxe4 {[%clk 0:00:05]} 51. Qa8+ {[%clk 0:00:04]}  Ke3 {[%clk 0:00:03]} 52. Rc3+ {[%clk 0:00:04]}  Kd2 {[%clk 0:00:03]} 53. Qe4 {[%clk 0:00:03]}  Rg3 {[%clk 0:00:01]} 54. Qc2+ {[%clk 0:00:03]}  Ke1 {[%clk 0:00:02]} 55. Qc1+ {[%clk 0:00:04]}  Kf2 {[%clk 0:00:02]} 56. Qd2+ {[%clk 0:00:02]}  Kg1 {[%clk 0:00:03]} 57. Rc1 {[%clk 0:00:03]}  Qxc1 {[%clk 0:00:03]} 58. Qxc1+ {[%clk 0:00:04]}  Kh2 {[%clk 0:00:03]} 59. Qd2+ {[%clk 0:00:04]}  Rg2 {[%clk 0:00:04]} 60. Qf4+ {[%clk 0:00:05]}  R7g3 {[%clk 0:00:04]} 61. Qe5 {[%clk 0:00:06]}  Rf2 {[%clk 0:00:03]} 62. Qxe6 {[%clk 0:00:06]}  Rgg2 {[%clk 0:00:03]} 63. Qe5+ {[%clk 0:00:06]}  Kh1 {[%clk 0:00:03]} 64. Ka3 {[%clk 0:00:07]}  a5 {[%clk 0:00:03]} 65. Qh5+ {[%clk 0:00:05]}  Kg1 {[%clk 0:00:04]} 66. Qc5 {[%clk 0:00:05]}  Rg3+ {[%clk 0:00:03]} 67. b3 {[%clk 0:00:05]}  Kg2 {[%clk 0:00:03]} 68. Qxa5 {[%clk 0:00:05]}  Rff3 {[%clk 0:00:03]} 69. Qd5 {[%clk 0:00:05]}  Kh2 {[%clk 0:00:03]} 70. Ka4 {[%clk 0:00:06]}  Kh3 {[%clk 0:00:03]} 71. Qh5+ {[%clk 0:00:06]}  Kg2 {[%clk 0:00:03]} 72. Qd5 {[%clk 0:00:07]}  Rg4+ {[%clk 0:00:03]} 73. b4 {[%clk 0:00:07]}  Kf2 {[%clk 0:00:03]} 74. Ka5 {[%clk 0:00:06]}  Ra3+ {[%clk 0:00:03]} 75. Kb5 {[%clk 0:00:06]}  Rag3 {[%clk 0:00:04]} 76. Qd2+ {[%clk 0:00:07]}  Kf3 {[%clk 0:00:04]} 77. Ka6 {[%clk 0:00:07]}  Rg6+ {[%clk 0:00:04]} 78. Ka5 {[%clk 0:00:07]}  Rg2 {[%clk 0:00:04]} 79. Qc3+ {[%clk 0:00:07]}  Ke4 {[%clk 0:00:04]} 80. b5 {[%clk 0:00:07]}  Kd5 {[%clk 0:00:04]} 81. Qd3+ {[%clk 0:00:07]}  Kc5 {[%clk 0:00:05]} 82. Qc3+ {[%clk 0:00:08]}  Kd5 {[%clk 0:00:05]} 83. Qb3+ {[%clk 0:00:08]}  Ke5 {[%clk 0:00:06]} 84. b6 {[%clk 0:00:08]}  Kd4 {[%clk 0:00:03]} 85. b7 {[%clk 0:00:08]}  R2g5+ {[%clk 0:00:03]} 86. Ka4 {[%clk 0:00:08]}  Ra6+ {[%clk 0:00:04]} 87. Kb4 {[%clk 0:00:07]}  Rb6+ {[%clk 0:00:04]} 88. Ka4 {[%clk 0:00:07]}  Rxb3 {[%clk 0:00:05]} 89. b8=Q {[%clk 0:00:08]}  Rxb8 {[%clk 0:00:04]} 90. Ka3 {[%clk 0:00:03]}  Ra5# {[%clk 0:00:05]} 0-1


[Site "https://www.chess.com"]